bitfinex/quotes_ETHUSD_20250703
["timestamp","ask_amount","ask_price","bid_price","bid_amount"]
[1751548660762,48.21283952,2593.4,2593.3,0.02]
[1751548660962,10.8008,2593.4,2593.3,0.02]
[1751548661266,44.656742,2593.4,2593.3,0.02]
[1751548661472,45.206742,2593.4,2593.3,0.02]
[1751548662412,31.3744,2593.2,2593.1,0.01]
[1751548662618,52.48363939,2593.2,2593.1,0.01]
[1751548663679,60.00534858,2593.2,2593.1,0.01]
[1751548663883,60.47733939,2593.2,2593.1,0.01]
[1751548664113,60.83333365,2593.2,2593.1,0.01]
[1751548664323,52.84633365,2593.2,2593.1,0.01]
[1751548664482,63.01052288,2593.2,2593.1,0.01]
[1751548665093,62.65452862,2593.2,2593.1,0.01]
[1751548665288,63.01015135,2593.2,2593.1,0.01]
[1751548666017,63.01011617,2593.2,2593.1,0.01]
[1751548666217,63.01111617,2593.2,2593.1,0.01]
[1751548666386,3.85683544,2592.8,2592.5,0.2156413]
[1751548666713,7.988,2592.7,2592.5,0.2156413]
[1751548666918,1.984,2592.6,2592.5,0.2156413]
[1751548667493,18.27728923,2593.2,2592.5,0.2156413]
[1751548667694,12.97609752,2592.6,2592.5,0.2156413]
[1751548667986,54.82122935,2592.6,2592.5,0.2156413]
[1751548668602,63.71691198,2592.6,2592.5,0.2156413]
[1751548668893,3.85787585,2592.1,2592.0,0.01]
[1751548669083,27.65860635,2592.1,2592.0,0.01]
[1751548670208,28.20860635,2592.1,2592.0,0.01]
[1751548670529,58.20960635,2592.1,2592.0,0.01]
[1751548671103,16.83477693,2591.6,2591.2,0.7985]
[1751548671305,10.49353387,2591.5,2591.2,0.7985]
[1751548672045,10.49353387,2591.5,2590.8,3.8597295]
[1751548672046,1.985,2591.4,2591.3,3.85901985]
[1751548672243,1.985,2591.5,2591.3,0.7985]
[1751548673021,1.985,2591.5,2591.4,3.85891795]
[1751548673425,9.27,2591.7,2591.3,4.65749312]
[1751548673636,9.27,2591.7,2591.3,0.7985]
[1751548673838,9.974,2591.6,2591.3,0.7985]
[1751548674333,10.197,2591.7,2591.3,0.7985]
[1751548674334,9.27,2591.7,2591.3,0.7985]
[1751548674632,9.27,2591.7,2590.4,3.86040123]
[1751548674633,1.985,2591.8,2591.6,0.831]
[1751548674833,1.985,2591.8,2591.6,4.68952186]
[1751548675043,1.985,2591.8,2591.7,3.85847127]
[1751548675207,1.985,2591.8,2591.7,4.66847127]
[1751548675910,7.99,2591.9,2591.8,3.85822076]
[1751548676110,7.99,2592.0,2591.9,3.85807011]
[1751548676337,1.985,2592.0,2591.8,3.85824203]
[1751548676736,1.985,2592.0,2591.9,3.85817354]
[1751548677237,1.985,2592.0,2591.9,4.65287354]
[1751548678034,3.85655003,2593.0,2592.2,4.62444633]
[1751548678236,1.985,2592.7,2592.2,0.7668]
[1751548678403,7.99,2592.6,2592.2,0.7668]
[1751548678604,1.985,2592.5,2592.2,0.7668]
[1751548678809,40.0,2593.1,2592.6,3.85711309]
[1751548679005,9.272,2593.4,2592.9,3.85668556]
[1751548679220,9.975,2593.3,2592.9,3.85667333]
[1751548679442,9.975,2593.3,2592.8,3.85676607]
[1751548679738,0.02,2593.2,2592.7,4.67638194]
[1751548679920,9.974,2593.1,2592.8,3.8567535]
[1751548680122,0.02,2593.2,2593.0,3.85643834]
[1751548680326,0.02,2593.2,2592.8,3.85675954]
[1751548680327,9.974,2593.1,2592.8,3.85675954]
[1751548680527,9.974,2593.1,2592.7,0.8194]
[1751548680838,9.974,2593.1,2592.8,3.85683431]
[1751548681222,9.974,2593.1,2592.7,4.67631386]
[1751548681418,0.02,2593.2,2592.9,3.85666503]
[1751548681624,9.972,2593.1,2592.8,0.7701]
[1751548681828,9.972,2593.1,2592.8,4.81965236]
[1751548682138,1.983,2593.1,2592.9,3.85666681]
[1751548682311,1.983,2593.1,2592.8,4.81965402]
[1751548682513,1.983,2593.1,2592.8,0.9629]
[1751548682737,1.983,2593.1,2592.8,4.81972638]
[1751548683110,0.02,2593.2,2592.9,3.85664127]
[1751548683325,9.972,2593.1,2593.0,3.85653682]
[1751548683616,9.972,2593.1,2592.9,3.85665799]
[1751548683919,9.972,2593.1,2593.0,3.85653682]
[1751548684940,9.991,2593.2,2593.0,3.85653682]
[1751548685447,9.991,2593.2,2592.9,3.85660656]
[1751548685651,0.02,2593.2,2592.9,3.85660656]
[1751548685949,1.983,2593.1,2593.0,3.85653682]
[1751548687145,1.983,2593.1,2592.9,3.85662316]
[1751548687347,1.983,2593.1,2592.8,4.81966998]
[1751548687566,1.983,2593.1,2592.9,3.85668072]
[1751548687732,1.983,2593.1,2593.0,3.85653682]
[1751548687931,1.983,2593.1,2592.9,3.85660658]
[1751548688255,0.02,2593.2,2593.0,3.85653587]
[1751548688464,8.008,2593.2,2593.1,3.8563881]
[1751548688678,9.991,2593.2,2592.9,3.85668556]
[1751548688862,0.02,2593.2,2592.8,4.81966494]
[1751548689041,1.983,2593.1,2592.9,3.85667579]
[1751548689547,1.983,2593.1,2592.8,4.81969587]
[1751548689752,1.983,2593.1,2592.9,3.85667222]
[1751548691263,1.983,2593.1,2592.8,0.9629]
[1751548691456,1.983,2593.1,2592.9,3.85667952]
[1751548691954,1.983,2593.1,2592.8,4.81965642]
[1751548693151,1.983,2593.1,2592.9,3.85668318]
[1751548693950,1.983,2593.1,2592.8,0.9629]
[1751548694982,1.983,2593.1,2592.8,4.81973256]
[1751548695168,1.983,2593.1,2592.8,0.9629]
[1751548695365,1.983,2593.1,2592.8,4.81972701]
[1751548695675,1.983,2593.1,2592.3,4.68977821]
[1751548695877,0.1928,2593.0,2592.6,0.1928]
[1751548696447,7.986,2592.9,2592.3,4.68971756]
[1751548696649,0.1928,2592.8,2592.4,3.85732685]
[1751548697342,1.983,2593.1,2591.9,0.86111156]
[1751548697343,1.983,2593.1,2592.9,0.8208]
[1751548697569,0.02,2593.2,2592.9,4.67737191]
[1751548697771,0.02,2593.2,2592.9,4.67744032]
[1751548697772,1.983,2593.1,2592.9,4.67744032]
[1751548697986,1.983,2593.1,2593.0,3.85653682]
[1751548698187,1.983,2593.1,2592.9,0.8208]
[1751548698188,1.983,2593.1,2592.9,4.67742831]
[1751548698393,1.983,2593.1,2592.9,0.8208]
[1751548699888,1.983,2593.1,2592.9,4.67746797]
[1751548700090,1.983,2593.1,2592.9,0.8208]
[1751548700405,1.983,2593.1,2592.7,0.9914]
[1751548700589,1.983,2593.1,2591.9,4.71927369]
[1751548700590,0.1928,2593.0,2592.5,4.84858894]
[1751548701093,0.1928,2593.0,2592.6,3.85712569]
[1751548701301,2.7726,2593.1,2592.8,3.85676676]
[1751548701302,1.983,2593.1,2592.8,3.85676676]
[1751548701592,1.983,2593.1,2592.9,0.1928]
[1751548702165,1.983,2593.1,2592.9,4.0494554]
[1751548702367,1.983,2593.1,2593.0,0.822]
[1751548703094,0.02,2593.2,2593.1,3.8563881]
[1751548703392,0.02,2593.2,2593.1,4.69995198]
[1751548703596,0.02,2593.2,2593.1,4.6613881]
[1751548705186,0.02,2593.2,2593.1,0.805]
[1751548705381,0.02,2593.2,2593.1,4.6613881]
[1751548705584,0.02,2593.2,2593.0,0.1928]
[1751548705791,0.02,2593.2,2593.0,4.04930635]
[1751548706202,0.02,2593.2,2593.0,0.1928]
[1751548706965,0.02,2593.2,2592.9,0.7949]
[1751548707277,0.1928,2593.1,2592.9,4.65148431]
[1751548707499,0.1928,2593.1,2592.9,0.7949]
[1751548708404,0.1928,2593.1,2592.9,4.65156637]
[1751548708601,0.02,2593.2,2593.0,3.85653682]
[1751548709207,0.02,2593.2,2592.9,4.65156307]
[1751548709901,0.02,2593.2,2593.0,3.85646554]
[1751548710126,0.02,2593.2,2592.9,4.65149653]
[1751548710329,0.02,2593.2,2593.0,0.1928]
[1751548710640,0.02,2593.2,2593.1,3.89495198]
[1751548710818,0.02,2593.2,2593.1,4.9423897]
[1751548711019,0.02,2593.2,2593.1,4.08775198]
[1751548711273,0.02,2593.2,2593.1,4.91805198]
[1751548711535,0.36129237,2594.0,2593.9,14.68549873]
[1751548711734,0.02,2594.2,2594.1,4.6856015]
[1751548711894,0.02,2594.2,2594.1,6.85326053]
[1751548713427,0.02,2594.2,2594.1,6.81471152]
[1751548713604,0.02,2594.2,2594.1,6.85326053]
[1751548714529,0.02,2594.2,2594.1,6.81471152]
[1751548714729,0.02,2594.2,2594.1,6.85326053]
[1751548715304,0.02,2594.2,2594.1,6.81471152]
[1751548716652,0.02,2594.2,2594.1,2.95981002]
[1751548716814,0.02,2594.2,2593.8,0.7531]
[1751548717003,0.02,2594.2,2594.0,0.192]
[1751548717401,0.02,2594.2,2593.4,4.64959249]
[1751548717614,1.0164,2594.1,2593.6,0.192]
[1751548717836,4.67939748,2594.1,2593.2,3.85615475]
[1751548718146,0.192,2593.8,2593.4,0.192]
[1751548718351,1.98,2594.0,2593.3,3.85603069]
[1751548718645,1.98,2594.0,2593.7,0.192]
[1751548718846,3.85528959,2593.9,2593.1,0.7981]
[1751548719050,0.192,2593.7,2593.2,0.1928]
[1751548720009,0.192,2593.7,2593.4,3.85591565]
[1751548720246,2.172,2593.9,2593.5,0.23055793]
[1751548720440,2.172,2593.9,2593.5,0.192]
[1751548721111,6.02721852,2593.9,2593.5,0.192]
[1751548721309,2.172,2593.9,2593.5,0.192]
[1751548721511,0.60271248,2593.8,2593.5,0.192]
[1751548721710,2.172,2593.9,2593.5,0.192]
[1751548723144,5.83522486,2593.9,2593.1,0.7981]
[1751548723310,4.04735427,2593.8,2593.3,0.1928]
[1751548723641,0.192,2593.6,2593.1,0.9909]
[1751548725928,0.192,2593.6,2593.2,0.03856239]
[1751548727352,4.04767598,2593.6,2593.1,0.9909]
[1751548727648,0.9678,2593.6,2593.1,0.9909]
[1751548727832,4.82344574,2593.6,2593.1,0.9909]
[1751548728035,3.85581479,2593.5,2593.1,0.2028]
[1751548728237,4.82344574,2593.6,2593.1,0.2028]
[1751548728238,0.9678,2593.6,2593.1,0.2028]
[1751548729020,4.82345364,2593.6,2593.1,0.2028]
[1751548729522,3.85584874,2593.5,2593.1,0.01]
[1751548729721,0.1928,2593.3,2593.1,0.01]
[1751548740047,4.04890974,2593.3,2593.1,0.01]
[1751548740253,4.68463939,2593.2,2593.1,0.01]
[1751548741439,5.04459088,2593.2,2593.1,0.01]
[1751548742371,1.18835149,2593.2,2593.1,0.01]
[1751548742579,5.85571299,2593.6,2593.1,0.01]
[1751548742774,0.1928,2593.3,2593.1,0.01]
[1751548747046,0.55298387,2593.3,2593.1,0.01]
[1751548747673,0.1928,2593.3,2593.1,0.01]
[1751548748571,0.8333,2593.2,2593.1,0.01]
[1751548748771,5.0505495,2593.2,2593.1,0.01]
[1751548749176,5.92501613,2593.2,2593.1,0.01]
[1751548750540,5.94501613,2593.2,2593.1,0.01]
[1751548750971,2.08877674,2593.2,2593.1,0.01]
[1751548751178,5.0705495,2593.2,2593.1,0.01]
[1751548751341,5.94501613,2593.2,2593.1,0.01]
[1751548752981,13.92401613,2593.2,2593.1,0.01]
[1751548755781,11.21447674,2593.2,2593.1,0.01]
[1751548755981,2.36101011,2593.2,2593.1,0.01]
[1751548758781,6.2172495,2593.2,2593.1,0.01]
[1751548759288,7.84716859,2593.2,2593.1,0.01]
[1751548759781,2.0109292,2593.2,2593.1,0.01]
[1751548759983,11.09267799,2593.2,2593.1,0.01]
[1751548760183,1.25759708,2593.2,2593.1,0.01]
[1751548760483,0.02,2593.2,2593.1,0.01]
[1751548760687,0.2128,2593.2,2593.1,0.01]
[1751548761050,0.57397799,2593.2,2593.1,0.01]
[1751548762689,2.55397799,2593.2,2593.1,0.01]
[1751548762987,3.43039708,2593.2,2593.1,0.01]
[1751548763556,7.28663647,2593.2,2593.1,0.01]
[1751548764287,16.62943647,2593.2,2593.1,0.01]
[1751548764492,34.4063881,2593.1,2593.0,0.01]
[1751548764667,49.4228827,2593.1,2593.0,0.01]
[1751548765991,57.3998827,2593.1,2593.0,0.01]
[1751548767562,3.85676174,2592.9,2592.2,0.1928]
[1751548767764,0.1928,2592.5,2592.2,0.1928]
[1751548768086,1.98,2592.6,2592.3,0.7804]
[1751548768285,0.1928,2592.7,2592.3,0.7804]
[1751548768582,0.55399594,2592.7,2592.3,0.81897578]
[1751548768785,0.36119594,2592.9,2592.6,4.65646274]
[1751548768986,0.36119594,2592.9,2592.6,0.7994]
[1751548769872,2.53399594,2593.0,2592.6,0.7994]
[1751548770191,0.36119594,2592.9,2592.6,0.7994]
[1751548770765,0.55399594,2593.0,2592.6,0.7994]
[1751548771064,2.53199594,2593.0,2592.6,0.7994]
[1751548771266,0.36119594,2592.9,2592.6,0.7994]
[1751548771891,0.36119594,2592.8,2592.2,0.775]
[1751548772093,0.1928,2592.6,2592.2,0.775]
[1751548773203,0.55415925,2592.6,2592.2,0.775]
[1751548773497,0.72158237,2592.6,2592.1,0.2028]
[1751548773701,0.1928,2592.6,2592.1,0.2028]
[1751548773898,0.1928,2592.6,2592.5,0.01]
[1751548774495,0.55415925,2592.6,2592.5,0.01]
[1751548774897,0.1928,2592.6,2592.5,0.01]
[1751548775478,0.55401369,2592.6,2592.5,0.01]
[1751548775804,27.06402796,2592.6,2592.5,0.01]
[1751548775993,28.49085034,2592.6,2592.5,0.01]
[1751548777207,36.48085034,2592.6,2592.5,0.01]
[1751548777396,5.18152702,2592.2,2592.1,0.01]
[1751548777616,14.94674071,2592.2,2592.1,0.01]
[1751548777774,16.28124502,2592.2,2592.1,0.01]
[1751548777980,59.25734254,2592.2,2592.1,0.01]
[1751548778176,16.28124502,2592.2,2592.1,0.01]
[1751548778783,11.19303607,2592.2,2592.1,0.01]
[1751548779017,10.31621369,2592.2,2592.1,0.01]
[1751548779213,9.955,2592.2,2592.1,0.01]
[1751548779488,7.99,2592.6,2592.1,0.01]
[1751548779711,10.31578825,2592.5,2592.1,0.01]
[1751548779910,0.36078825,2592.4,2592.1,0.01]
[1751548780294,1.978,2592.3,2592.1,0.01]
[1751548781017,0.3607335,2592.2,2592.1,0.01]
[1751548782601,12.6677389,2592.6,2592.1,0.01]
[1751548782914,11.20933819,2592.5,2592.1,0.01]
[1751548783089,0.36059961,2592.4,2592.1,0.01]
[1751548783987,0.36059961,2592.4,2592.2,0.7845]
[1751548784189,7.99,2592.6,2592.5,4.64178061]
[1751548784421,7.99,2592.6,2592.5,1.63443588]
[1751548784622,7.99,2592.6,2592.5,5.49171649]
[1751548784919,7.99,2592.6,2592.5,4.64178061]
[1751548785132,1.978,2593.0,2592.5,0.7845]
[1751548785311,0.36050206,2592.9,2592.5,0.7845]
[1751548787392,0.1928,2592.8,2592.5,0.7845]
[1751548787826,1.978,2592.8,2592.5,1.65371368]
[1751548788004,1.978,2592.9,2592.5,5.70372645]
[1751548788208,1.978,2592.9,2592.5,1.84651368]
[1751548789003,1.978,2592.9,2592.5,0.9773]
[1751548789201,0.1928,2593.0,2592.5,4.8345104]
[1751548789532,1.978,2592.8,2592.5,0.9773]
[1751548790425,1.08618674,2593.0,2592.5,0.9773]
[1751548790630,2.33867263,2592.9,2592.5,0.9773]
[1751548790932,0.36067263,2592.8,2592.5,0.9773]
[1751548792322,1.978,2592.8,2592.5,0.9773]
[1751548792828,1.08618674,2593.0,2592.5,0.9773]
[1751548793129,2.33887038,2592.9,2592.5,0.9773]
[1751548793329,0.36087038,2592.8,2592.2,0.7718]
[1751548793500,0.1928,2592.7,2592.2,4.82232332]
[1751548793700,0.1928,2592.7,2592.2,0.9646]
[1751548794523,0.1928,2592.7,2592.2,4.82231137]
[1751548794721,0.36087038,2592.8,2592.5,0.7529]
[1751548794927,1.978,2592.8,2592.5,0.9457]
[1751548795318,1.08639013,2593.0,2592.5,0.9457]
[1751548795519,0.3609693,2592.9,2592.5,0.9457]
[1751548795726,1.978,2592.9,2592.5,0.9457]
[1751548796024,0.3609693,2592.8,2592.5,0.9457]
[1751548796225,1.978,2592.8,2592.5,0.9457]
[1751548796423,1.978,2592.8,2592.5,0.7529]
[1751548796627,6.70046621,2592.8,2592.3,1.0095]
[1751548796825,0.3609885,2592.7,2592.3,0.8167]
[1751548797005,0.3609885,2592.7,2592.1,1.0304]
[1751548797006,4.04997583,2592.6,2592.1,1.0304]
[1751548797223,3.85717583,2592.6,2592.1,0.8376]
[1751548797508,0.1928,2592.4,2592.1,0.8376]
[1751548799251,4.21832445,2592.5,2592.1,0.8376]
[1751548799459,4.21832445,2592.5,2592.1,0.01]
[1751548799460,0.1928,2592.3,2592.1,0.01]
[1751548801848,1.976,2592.3,2592.1,3.86781162]
[1751548802678,1.976,2592.7,2592.4,3.85735934]
[1751548803025,0.36096348,2592.6,2592.3,0.7609]
[1751548803223,0.36096509,2592.7,2592.5,0.1928]
[1751548803838,0.36096509,2592.7,2592.5,4.04998389]
[1751548804039,0.36096509,2592.7,2592.5,0.1928]
[1751548805937,10.1588,2592.8,2592.5,0.1928]
[1751548806334,12.97609752,2592.4,2592.1,0.01]
[1751548806554,12.96124028,2592.7,2592.1,0.2028]
[1751548806555,0.1928,2592.5,2592.1,0.2028]
[1751548807969,0.55347025,2592.5,2592.1,0.2028]
[1751548809661,0.36067025,2592.5,2592.4,3.8574294]
[1751548809962,0.02,2592.7,2592.4,0.1928]
[1751548810162,0.38070918,2592.7,2592.4,0.1928]
[1751548810965,0.38070918,2592.7,2592.5,0.7875]
[1751548811153,0.02,2592.7,2592.5,0.7875]
[1751548811665,0.02,2592.7,2592.5,4.64475527]
[1751548811862,0.02,2592.7,2592.5,0.7875]
[1751548812266,0.02,2592.7,2592.5,4.64463777]
[1751548812473,0.02,2592.7,2592.5,0.7875]
[1751548815082,0.02,2592.7,2592.6,3.85713183]
[1751548815450,0.02,2592.7,2592.5,5.16703675]
[1751548816757,0.02,2592.7,2592.5,1.30984467]
[1751548816957,0.02,2592.7,2592.5,0.8260728]
[1751548817270,0.02,2592.7,2592.5,4.68328724]
[1751548819177,0.02,2592.7,2592.5,0.8260728]
[1751548819879,0.02,2592.7,2592.5,4.68326666]
[1751548820378,0.02,2592.7,2592.5,0.8260728]
[1751548820551,0.02,2592.7,2592.5,4.64469603]
[1751548820747,0.02,2592.7,2592.5,0.7875]
[1751548821882,0.02,2592.7,2592.5,0.7975]
[1751548822284,0.02,2592.7,2592.5,0.01]
[1751548822582,0.02,2592.7,2592.6,3.85713183]
[1751548822747,0.02,2592.7,2592.5,0.0485728]
[1751548822748,0.02,2592.7,2592.5,3.90577873]
[1751548823692,0.02,2592.7,2592.5,0.0485728]
[1751548824055,0.02,2592.7,2592.5,3.90583755]
[1751548824357,0.02,2592.7,2592.5,0.0485728]
[1751548824564,0.02,2592.7,2592.5,3.90584321]
[1751548824961,0.02,2592.7,2592.5,0.0485728]
[1751548825547,0.02,2592.7,2592.5,0.01]
[1751548828485,0.02,2592.7,2592.5,3.9058251]
[1751548828787,0.02,2592.7,2592.5,0.0485728]
[1751548830165,0.02,2592.7,2592.5,0.01]
[1751548831295,0.02,2592.7,2592.5,3.86721771]
[1751548831794,0.02,2592.7,2592.6,4.67083183]
[1751548832102,0.02,2592.7,2592.6,4.90220314]
[1751548833381,0.02,2592.7,2592.6,4.86363183]
[1751548834102,0.02,2592.7,2592.6,4.90220314]
[1751548836900,0.02,2592.7,2592.6,4.86363183]
[1751548837196,0.02,2592.7,2592.6,6.62080875]
[1751548838808,1e-08,2592.7,2592.6,17.17080875]
[1751548839060,0.02,2593.6,2593.5,4.67999332]
[1751548839312,0.02,2594.0,2593.8,3.85534736]
[1751548839606,0.02,2594.0,2593.8,13.23890083]
[1751548839607,1e-08,2593.9,2593.8,13.23890083]
[1751548839775,0.02,2594.2,2593.8,13.23890083]
[1751548839776,0.35986086,2594.9,2594.0,15.23605011]
[1751548839972,1e-08,2594.3,2594.2,5.19815291]
[1751548840173,0.02,2595.0,2594.6,4.40415863]
[1751548840393,0.02,2595.0,2594.6,13.16155863]
[1751548844015,0.02,2595.0,2594.6,23.16155863]
[1751548844318,0.02,2595.0,2594.6,23.15855863]
[1751548844521,0.02,2595.0,2594.6,26.08645825]
[1751548845109,0.02,2595.0,2594.6,17.57545825]
[1751548845331,0.02,2595.0,2594.6,25.53545825]
[1751548845929,0.02,2595.0,2594.6,3.72129962]
[1751548846088,0.02,2595.0,2594.6,11.68029962]
[1751548846290,0.02,2595.0,2594.6,12.60655863]
[1751548847709,0.02,2595.0,2594.6,4.64755863]
[1751548848194,0.02,2595.0,2594.6,12.60555863]
[1751548848896,0.02,2595.0,2594.6,12.79755863]
[1751548850832,0.02,2595.0,2594.6,0.192]
[1751548851039,0.02,2595.0,2594.6,12.00315863]
[1751548851392,0.02,2595.0,2594.6,8.149]
[1751548851593,0.02,2595.0,2594.6,0.192]
[1751548851805,0.02,2595.0,2594.6,8.149]
[1751548853425,0.02,2595.0,2594.6,0.192]
[1751548856314,0.02,2595.0,2594.5,7.957]
[1751548856515,0.02,2595.0,2594.5,7.956]
[1751548856825,0.02,2595.0,2594.0,0.7834]
[1751548857027,0.7509,2594.6,2594.1,3.85489635]
[1751548857233,0.7509,2594.6,2594.1,11.81089635]
[1751548857529,0.7509,2594.6,2594.1,7.956]
[1751548857851,0.7509,2594.6,2594.1,11.8108894]
[1751548858026,0.7509,2594.6,2594.3,0.01]
[1751548858391,0.7509,2594.6,2594.3,3.86451105]
[1751548858597,0.8116,2594.9,2594.4,11.80945287]
[1751548858902,0.8116,2594.9,2594.5,3.85430321]
[1751548859100,0.8116,2594.9,2594.4,11.80938191]
[1751548859403,0.8116,2594.9,2594.5,3.85430078]
[1751548859724,0.8116,2594.9,2594.4,7.955]
[1751548860828,0.8116,2594.9,2594.4,11.80939215]
[1751548861029,0.8116,2594.9,2594.5,3.85429282]
[1751548861228,0.8116,2594.9,2594.4,11.80941463]
[1751548861433,0.8116,2594.9,2594.4,13.14808848]
[1751548861729,0.8116,2594.9,2594.5,3.8542862]
[1751548864529,0.8116,2594.9,2594.4,13.14807778]
[1751548864732,0.8116,2594.9,2594.6,3.85415863]
[1751548864926,0.8116,2594.9,2594.4,13.14807778]
[1751548864927,0.8116,2594.9,2594.4,13.92367778]
[1751548865128,0.8116,2594.9,2594.5,3.8541863]
[1751548866206,0.8116,2594.9,2594.6,0.192]
[1751548866933,0.8116,2594.9,2594.6,4.04615863]
[1751548867109,0.02,2595.0,2594.6,5.8431226]
[1751548867721,0.02,2595.0,2594.6,1.98896397]
[1751548868601,0.02,2595.0,2594.6,5.8431226]
[1751548869039,0.02,2595.0,2594.6,13.83566418]
[1751548869334,0.02,2595.0,2594.6,13.7971226]
[1751548870527,0.02,2595.0,2594.6,15.1658226]
[1751548871350,0.02,2595.0,2594.6,6.6618226]
[1751548871555,0.02,2595.0,2594.6,12.81785863]
[1751548871852,0.02,2595.0,2594.6,11.99915863]
[1751548878244,0.02,2595.0,2594.6,4.04615863]
[1751548878444,0.02,2595.0,2594.3,0.01]
[1751548878445,8.32912683,2594.8,2594.3,0.01]
[1751548878647,8.32912683,2594.4,2594.3,0.01]
[1751548878847,9.23794951,2594.4,2594.3,0.01]
[1751548879345,8.32912683,2594.4,2594.3,0.01]
[1751548879546,9.15072683,2594.4,2594.3,0.01]
[1751548880817,4.67605575,2594.4,2594.3,0.01]
[1751548881342,5.58326446,2594.4,2594.3,0.01]
[1751548882544,1.72880871,2594.4,2594.3,0.01]
[1751548882727,0.8216,2594.4,2594.3,0.01]
[1751548883141,4.67605575,2594.4,2594.3,0.01]
[1751548883448,5.58326446,2594.4,2594.3,0.01]
[1751548885019,15.50326446,2594.4,2594.3,0.01]
[1751548886330,3.69780871,2594.4,2594.3,0.01]
[1751548886533,2.7906,2594.4,2594.3,0.01]
[1751548886818,3.15055629,2594.4,2594.3,0.01]
[1751548887349,2.7906,2594.4,2594.3,0.01]
[1751548888324,0.8216,2594.4,2594.3,0.01]
[1751548889022,2.7906,2594.4,2594.3,0.01]
[1751548889225,36.64505575,2594.4,2594.3,0.01]
[1751548889429,37.91129406,2594.4,2594.3,0.01]
[1751548889645,7.91129406,2594.4,2594.3,0.01]
[1751548889845,5.94229406,2594.4,2594.3,0.01]
[1751548890020,15.86329406,2594.4,2594.3,0.01]
[1751548890652,28.86751973,2594.4,2594.3,0.01]
[1751548891054,2.08783831,2594.4,2594.3,0.01]
[1751548891252,11.10232854,2594.4,2594.3,0.01]
[1751548891437,14.59605575,2594.4,2594.3,0.01]
[1751548891753,10.7416,2594.4,2594.3,0.01]
[1751548892561,14.59605575,2594.4,2594.3,0.01]
[1751548893152,27.60028142,2594.4,2594.3,0.01]
[1751548894854,23.74582567,2594.4,2594.3,0.01]
[1751548895059,27.60028142,2594.4,2594.3,0.01]
[1751548901261,27.95998528,2594.4,2594.3,0.01]
[1751548901960,14.95575961,2594.4,2594.3,0.01]
[1751548902167,10.27570386,2594.4,2594.3,0.01]
[1751548902335,9.916,2594.4,2594.3,0.01]
[1751548902662,1.967,2594.4,2594.3,0.01]
[1751548902884,10.108,2594.5,2594.3,0.01]
[1751548903162,8.33605013,2594.4,2594.3,0.01]
[1751548906343,8.69665635,2594.4,2594.3,0.01]
[1751548907073,10.30305013,2594.4,2594.3,0.01]
[1751548907451,10.66398362,2594.4,2594.3,0.01]
[1751548907861,8.69698362,2594.4,2594.3,0.01]
[1751548908062,10.66398362,2594.4,2594.3,0.01]
[1751548908242,8.69698362,2594.4,2594.3,0.01]
[1751548908570,10.66398362,2594.4,2594.3,0.01]
[1751548908768,9.61341606,2594.4,2594.3,0.01]
[1751548908968,0.36093349,2594.4,2594.3,0.7885]
[1751548909139,0.02,2594.7,2594.5,3.85427843]
[1751548909340,0.02,2594.7,2594.6,4.67120021]
[1751548909539,0.02,2594.7,2594.6,4.82465863]
[1751548912077,0.02,2594.7,2594.4,0.192]
[1751548912954,0.02,2594.7,2594.4,0.23054455]
[1751548913149,0.02,2594.7,2594.5,3.85429372]
[1751548913871,0.02,2594.7,2594.6,4.66160021]
[1751548914052,0.02,2594.7,2594.6,4.81505863]
[1751548915069,0.02,2594.7,2594.6,4.85360021]
[1751548915573,0.02,2594.7,2594.6,4.81505863]
[1751548915776,0.02,2594.7,2594.6,4.85360021]
[1751548916099,0.02,2594.7,2594.6,5.72053468]
[1751548916386,0.02,2594.7,2594.6,5.6819931]
[1751548923192,0.02,2594.7,2594.6,13.6239931]
[1751548925090,0.02,2595.0,2594.9,4.67351305]
[1751548925291,0.02,2595.0,2594.9,14.44118572]
[1751548925562,0.02,2595.0,2594.9,14.59464859]
[1751548932666,0.02,2595.0,2594.9,6.65364859]
[1751548932997,0.02,2595.0,2594.9,14.04164859]
[1751548935595,0.02,2595.0,2594.9,5.28384859]
[1751548935772,0.02,2595.0,2594.9,13.22084859]
[1751548939476,0.02,2595.0,2594.9,14.59484859]
[1751548942499,0.02,2595.0,2594.9,6.65784859]
[1751548942705,0.02,2595.0,2594.9,14.59384859]
[1751548945688,0.02,2595.6,2595.5,3.85282219]
[1751548945888,1e-08,2595.8,2595.6,3.85264518]
[1751548946132,1e-08,2595.8,2595.7,23.36535058]
[1751548946411,1e-08,2595.8,2595.7,23.32682533]
[1751548947285,1e-08,2595.8,2595.7,4.84182533]
[1751548947509,1e-08,2595.8,2595.7,12.77682533]
[1751548947711,1e-08,2595.8,2595.7,15.09841224]
[1751548949008,1e-08,2595.8,2595.7,15.64841224]
[1751548950812,1e-08,2595.8,2595.7,15.09841224]
[1751548951719,1e-08,2595.8,2595.7,14.29911224]
[1751548951925,1e-08,2595.8,2595.7,11.97752533]
[1751548952505,0.79410001,2595.8,2595.7,0.192]
[1751548952707,0.79410001,2595.8,2595.5,8.124]
[1751548953328,0.79410001,2595.8,2595.5,11.9767482]
[1751548953629,0.79410001,2595.8,2595.5,8.124]
[1751548953826,0.79410001,2595.8,2595.5,11.97674888]
[1751548954327,0.79410001,2595.8,2595.5,11.9768135]